Cogmind - Beta 14 @@@ ROGUE MODE // 2024.08.14 @ 18:45:06 Player: Daffa0360 Result: Self-destructed Performance ------------- Evolutions (1) 500 Regions Visited (3) 600 Robots Destroyed (9) 45 Value Destroyed (135) 135 Prototype IDs (0) 0 Alien Tech Used (0) 0 Bonus (0) 0 TOTAL SCORE: 1280 Bonus ------- None Cogmind --------- Core Integrity 328/400 Matter 150/300 Energy 125/125 System Corruption 0% Temperature Cool (0) Movement Core (150) Ox2 Location -9/Materials Parts ------- > --- POWER (1) -------- Light Ion Engine > --- PROPULSION (2) --- (None) > --- UTILITY (4) ------ Small Storage Unit Targeting Computer > --- WEAPON (2) ------- (None) > --- INVENTORY (8) ---- Aluminum Leg Aluminum Leg Mining Laser Peak State ------------ > --- POWER ------------ Light Ion Engine > --- PROPULSION ------- Wheel > --- UTILITY ---------- Small Storage Unit Improved Terrain Scanner Targeting Computer > --- WEAPON ----------- Light Assault Rifle Heavy Assault Rifle > --- INVENTORY -------- Aluminum Leg Aluminum Leg Light Assault Rifle Mining Laser [Rating: 10] Favorites ----------- Power Light Ion Engine Engine Light Ion Engine Propulsion Wheel Wheel Wheel Utility Small Storage Unit Device Improved Terrain Scanner Storage Small Storage Unit Processor Targeting Computer Weapon Light Assault Rifle Ballistic Gun Light Assault Rifle Build | -11 -10 -10 -9 ------- Run | Yrd Mat Min Mat Slots Evolved 2 | . . . 2 Power . | . . . . Propulsion . | . . . . Utility 2 | . . . 2 Weapon . | . . . . Parts Attached 18 | 6 2 1 9 Power 3 | 1 . 1 1 Engine 3 | 1 . 1 1 Core . | . . . . Reactor . | . . . . Propulsion 4 | 2 1 . 1 Treads . | . . . . Leg . | . . . . Wheel 4 | 2 1 . 1 Hover . | . . . . Flight . | . . . . Utility 6 | 1 1 . 4 Device 2 | . . . 2 Storage 1 | 1 . . . Processor 3 | . 1 . 2 Hackware . | . . . . Protection . | . . . . Artifact . | . . . . Weapon 5 | 2 . . 3 Energy Gun . | . . . . Energy Cannon . | . . . . Ballistic Gun 5 | 2 . . 3 Ballistic Cannon . | . . . . Launcher . | . . . . Special Weapon . | . . . . Impact Weapon . | . . . . Slashing Weapon . | . . . . Piercing Weapon . | . . . . Special Melee Weapon . | . . . . Unidentified Prototypes . | . . . . Parts Lost 6 | . . 1 5 Power . | . . . . Propulsion 2 | . . 1 1 Utility 1 | . . . 1 Weapon 3 | . . . 3 Highest Loss Streak 5 | . . 1 5 To Critical Strikes . | . . . . Average Slot Usage (%) 74 | . 83 67 51 Engine 12 | . 12 14 10 Wheel 23 | . 28 24 9 Device 1 | . . . 6 Storage 13 | . 14 14 11 Processor 6 | . 2 14 10 Ballistic Gun 16 | . 25 . 4 Peak Build Rating 10 | 6 7 5 10 Average Rating 5 | 5 5 4 6 On Entrance 3 | . 6 5 4 Naked Turns . | . . . . Heaviest Build 12 | 10 10 8 12 Greatest Support 26 | 26 26 26 10 Greatest Overweight (x) 1 | . . . 1 Average Overweight (x) . | . . . . Largest Inventory Capacity 8 | 8 8 8 8 Average Capacity 7 | 7 8 8 8 Most Carried 8 | 4 8 7 8 Average Carried 4 | 2 4 7 6 Final Capacity 8 | 8 8 8 8 Final Carried 8 | 4 8 7 3 Class Distribution -------------------- 100% | Mutant Dominant Class ---------------- Mutant | -10/Materials Mutant | -10/Mines Mutant | -9/Materials Resources | -11 -10 -10 -9 ----------- Run | Yrd Mat Min Mat Matter Collected 304 | 278 26 . . Remotely . | . . . . Salvage Created 199 | 60 139 . . Parts 19 | 8 11 . . Haulers Intercepted . | . . . . Recyclers Shooed . | . . . . Parts Field Recycled . | . . . . Retrieved Matter . | . . . . Parts Self-Destructed . | . . . . Prevented . | . . . . Kills | -11 -10 -10 -9 ------- Run | Yrd Mat Min Mat Combat Hostiles Destroyed 5 | . 5 . . Guns 5 | . 5 . . Classes Destroyed 4 | 1 3 . . Tunneler 3 | 3 . . . Operator 1 | . 1 . . Swarmer 3 | . 3 . . Grunt 2 | . 2 . . Best Kill Streak 3 | 2 3 . . Combat Bots Only 3 | . 3 . . Max Kills in Single Turn 1 | 1 1 . . Gunslinging . | . . . . Exploded . | . . . . Melee . | . . . . Uniques/NPCs Destroyed . | . . . . Combat | -11 -10 -10 -9 -------- Run | Yrd Mat Min Mat Hostile Shots Fired 62 | . 41 3 18 Missed 15 | . 13 1 1 Damage Taken 538 | . 262 32 244 Core 122 | . 32 18 72 Absorbed by Shields . | . . . . Core Remaining (%) 90 | 100 . 80 . Volleys Fired 46 | 14 23 . 9 Largest 2 | 2 2 . 2 Hottest 43 | 40 40 . 43 Shots Fired 86 | 28 46 . 12 Gun 86 | 28 46 . 12 Cannon . | . . . . Launcher . | . . . . Special . | . . . . Kinetic 86 | 28 46 . 12 Thermal . | . . . . Explosive . | . . . . Electromagnetic . | . . . . Robot Hit Streak 7 | 7 6 . 7 Robot Miss Streak 4 | 4 3 . 3 Penetration Max . | . . . . Secondary Targets 1 | . 1 . . Max Gunslinging Chain 1 | . 1 . . Shots Hit Robots 55 | 19 26 . 10 Core Hits 19 | 6 11 . 2 Critical Kills . | . . . . Critical Parts Destroyed . | . . . . Critical Strikes . | . . . . Melee Attacks . | . . . . Impact . | . . . . Slashing . | . . . . Piercing . | . . . . Sneak Attacks . | . . . . Combat Hostiles . | . . . . Follow-up Attacks . | . . . . Damage Inflicted 503 | 145 224 . 134 Guns 503 | 145 224 . 134 Cannons . | . . . . Explosions . | . . . . Melee . | . . . . Ramming . | . . . . Kinetic 503 | 145 224 . 134 Thermal . | . . . . Explosive . | . . . . Electromagnetic . | . . . . Impact . | . . . . Slashing . | . . . . Piercing . | . . . . Highest Corruption . | . . . . Average Corruption . | . . . . Corruption Purged . | . . . . Corruption Blocked . | . . . . Overload Shots . | . . . . Overflow Damage . | . . . . Projectiles . | . . . . Explosions . | . . . . Melee . | . . . . Knockbacks . | . . . . Impact . | . . . . Kinetic . | . . . . Secondary . | . . . . Self-Inflicted Damage . | . . . . Shots . | . . . . Rammed . | . . . . Targets Rammed . | . . . . Kicked . | . . . . Crushed . | . . . . Highest Temperature 32 | . 12 . 32 Average Temperature 12 | . 8 . 15 Received Heat Transfer 252 | . 45 18 189 Siege Activations . | . . . . Robots Corrupted . | . . . . Combat Hostiles . | . . . . Parts Fried . | . . . . Impact Corruptions . | . . . . Robots Melted . | . . . . Combat Hostiles . | . . . . Parts Melted . | . . . . Heat Transferred . | . . . . Parts Sabotaged . | . . . . Parts Stolen . | . . . . Parts Stripped . | . . . . Power Chain Reactions . | . . . . Alert | -11 -10 -10 -9 ------- Run | Yrd Mat Min Mat Peak Influence 156 | 15 156 40 38 Initial 15 | . 9 . 15 Average 32 | 5 52 9 24 Maximum Alert Level . | . . . . Low Security (%) 100 | 100 100 100 100 Level 1 . | . . . . Level 2 . | . . . . Level 3 . | . . . . Level 4 . | . . . . Level 5 . | . . . . High Security . | . . . . Max Security . | . . . . Squads Dispatched 2 | . 2 . . Investigation 1 | . 1 . . Extermination . | . . . . Reinforcement 1 | . 1 . . Assault . | . . . . Garrison . | . . . . Intercept . | . . . . Searches Triggered . | . . . . Construction Impeded . | . . . . Haulers Reinforced . | . . . . Active Scanning Responses . | . . . . Cargo Convoy Interrupts . | . . . . Stealth | -11 -10 -10 -9 --------- Run | Yrd Mat Min Mat Distress Signals 1 | . 1 . . Communications Jammed . | . . . . Distress Signals . | . . . . Times Spotted 17 | . 12 2 3 Peak Tracking Total 4 | . 4 2 3 Tactical Retreats 1 | . . 1 . Traps | -11 -10 -10 -9 ------- Run | Yrd Mat Min Mat Traps Triggered 4 | . 2 . 2 Indirectly . | . . . . Trap Hack Attempts . | . . . . Triggered . | . . . . Disarmed . | . . . . Reprogrammed . | . . . . Reused . | . . . . Traps Extracted . | . . . . Installed . | . . . . Triggered . | . . . . Machines | -11 -10 -10 -9 ---------- Run | Yrd Mat Min Mat Machines Disabled . | . . . . Max in Single Turn . | . . . . Machines Repaired . | . . . . Machines Dismantled . | . . . . Machines Sabotaged . | . . . . Overloaded Fab Kills . | . . . . Hacking | -11 -10 -10 -9 --------- Run | Yrd Mat Min Mat Machines Accessed 5 | . 2 1 2 Terminals 5 | . 2 1 2 Fabricators . | . . . . Repair Stations . | . . . . Recycling Units . | . . . . Scanalyzers . | . . . . Garrison Access . | . . . . Total Hacks 11 | . 4 1 6 Successful 6 | . 1 1 4 Failed 5 | . 3 . 2 Catastrophic 1 | . . . 1 Database Lockouts . | . . . . Manual 7 | . 2 . 5 Terminals 11 | . 4 1 6 Fabricators . | . . . . Repair Stations . | . . . . Recycling Units . | . . . . Scanalyzers . | . . . . Garrison Access . | . . . . Terminal Hacks 3 | . 1 1 1 Branch Access Points 1 | . 1 . . Locate Traps 1 | . . . 1 Zone Layout 1 | . . 1 . Fabricator Hacks . | . . . . Repair Station Hacks . | . . . . Recycling Unit Hacks . | . . . . Scanalyzer . | . . . . Garrison Access Hacks . | . . . . Unauthorized Hacks 3 | . . . 3 Terminals 3 | . . . 3 Assimilate 2 | . . . 2 Botnet 1 | . . . 1 Fabricators . | . . . . Repair Stations . | . . . . Recycling Units . | . . . . Scanalyzers . | . . . . Garrison Access . | . . . . Data Cores Recovered . | . . . . Used . | . . . . Hacking Detections 4 | . 2 . 2 Full Trace Events 1 | . 1 . . Feedback Events . | . . . . Feedback Blocked . | . . . . Robot Schematics Acquired . | . . . . Robots Built . | . . . . Authchips . | . . . . Time . | . . . . Total Robot Build Rating . | . . . . Part Schematics Acquired . | . . . . Parts Built . | . . . . Authchips . | . . . . Time . | . . . . Total Part Build Rating . | . . . . Parts Repaired . | . . . . Time . | . . . . Parts Recycled . | . . . . Recycled Matter . | . . . . Retrieved Matter . | . . . . Retrieved Components . | . . . . Parts Scanalyzed . | . . . . Part Schematics Acquired . | . . . . Parts Damaged . | . . . . Bothacking | -11 -10 -10 -9 ------------ Run | Yrd Mat Min Mat Used RIF Installer . | . . . . Robots Hacked . | . . . . Non-combat . | . . . . Combat . | . . . . Robot Hacks Applied . | . . . . Relay Couplers Released . | . . . . Fabnet Peak Effective % . | . . . . Robots Rewired . | . . . . Allies Hacked . | . . . . Hacks Repelled . | . . . . Allies | -11 -10 -10 -9 -------- Run | Yrd Mat Min Mat Total Allies . | . . . . Largest Group . | . . . . Highest-Rated Group . | . . . . Highest-Rated Ally . | . . . . Total Orders . | . . . . Ally Attacks . | . . . . Total Damage . | . . . . Kills . | . . . . Allies Corrupted . | . . . . Allies Melted . | . . . . Intel | -11 -10 -10 -9 ------- Run | Yrd Mat Min Mat Robot Analysis Total . | . . . . Derelict Logs Recovered . | . . . . Drone Launches . | . . . . Drone Recoveries . | . . . . Exploration | -11 -10 -10 -9 ------------- Run | Yrd Mat Min Mat Turns Passed 833 | 142 419 147 125 Spaces Moved 576 | 104 207 169 96 Core 11 | 9 . . 2 Treads . | . . . . Legs . | . . . . Wheels 565 | 95 207 169 94 Hover . | . . . . Flight . | . . . . Fastest Speed 50 | 50 90 80 80 Average Speed 86 | 86 90 86 81 Slowest Speed 100 | 90 90 90 100 Overloaded Moves . | . . . . Propulsion Burnouts . | . . . . Robots Hopped . | . . . . Cave-ins Triggered . | . . . . Exploration Rate (%) 23 | 5 44 32 13 Regions Visited 3 Branch Regions 1 Pre-discovered Areas . | . . . . Known Exits Taken 1 | . 1 . . Unknown Exits Taken 2 | 1 . 1 . Scrap Searched . | . . . . Spaces Dug . | . . . . Terrain Destroyed . | . . . . Melee . | . . . . Projectile . | . . . . AOE . | . . . . Terrain Rammed . | . . . . Walls Destroyed . | . . . . Machines Disabled . | . . . . Actions | -11 -10 -10 -9 --------- Run | Yrd Mat Min Mat Total 834 | 133 402 169 130 Wait 179 | . 166 . 13 Move 573 | 103 206 168 96 Hop . | . . . . Pick Up 18 | 10 5 . 3 Fast Attach 3 | . 1 . 2 Attach 15 | 6 1 1 7 Detach . | . . . . Swap . | . . . . Drop . | . . . . Fire 46 | 14 23 . 9 Melee . | . . . . Ram . | . . . . Kick . | . . . . Crush . | . . . . Escape Stasis . | . . . . Rewire . | . . . . Trap . | . . . . Miscellaneous . | . . . . Route ------- -11/Scrapyard -10/Materials -10/Mines -9/Materials History --------- Turn | Location | Event 7 | -11/Scrapyard | Discovered new exit (range 16) 143 | -11/Scrapyard | Entered Materials 315 | -10/Materials | Build established: Mutant 538 | -10/Materials | Identified exit to Mines 562 | -10/Materials | Entered Mines 604 | -10/Mines | Assembled infested the area 609 | -10/Mines | Assisted by a Guerilla fighting off Assembled 702 | -10/Mines | Discovered new exit (range 10) 709 | -10/Mines | Entered Materials 709 | -9/Materials | Evolved 2 slots: Utility x2 834 | -9/Materials | Self-destructed Last Messages --------------- 00776_ Targeting Computer severed. 00777_ Acquired Imp. Terrain Scanner. 00779_ Acquired Wheel. 00781_ Acquired Lgt. Ion Engine. 00795_ Connecting with Terminal... >>Trojan(Assimilate) Trojan loaded successfully. Testing... System interface override in place. >>Traps(Locate) Found 1 trap in 1 array: 1x Blade Trap Map updated. 00814_ Critical hit (Burn: +37). 00816_ Wheel destroyed. 00818_ Critical hit (Burn: +37). 00822_ Lgt. Assault Rifle destroyed. 00826_ Critical hit (Burn: +37). 00830_ Imp. Terrain Scanner destroyed. 00833_ Hvy. Assault Rifle destroyed. Map ----- +----------------------------------------------------+ | ?????????????????????????????????????????????????? | | ?????????????????????????????????????????????????? | | ?????????????????????????????????????????????????? | | ?????????????????????????????????????????????????? | | ?????????????????????????????????????????????????? | | ?????????????????????????????????????????????????? | | ?????????????????????????????????????????????????? | | ?????????????????????????????????????????????????? | | ?????????????????????????????????????????????????? | | ?????????????????????????????????????????????????? | | ?????????????????????????????????????????????????? | | ?????????????????????????????????????????????????? | | ?????????????????????????????????????????????????? | | ??????????????????????????#??? #?#???????????????? | | ???????????????????????????? #?????????????????? | | ???????????????????????????? #?????????????????? | | ??????????????????????????#? #?????????????????? | | ???????????????????????????? #?? ??????????????? | | ???????????????????????????? #?????????????????? | | ???????????????????????????# #??? ?????????????? | | ???????????????????######### #?????????????????? | | ???????????????????# ## #?????????????????? | | ????????????????? ?#[ """ ## #?????????????????? | | ???????????????????# """ ## #?????????????????? | | ????????????? ?????#] """ ## ##????????????????? | | ???????????????????# g @# #????????????????? | | ?????????????? ????# """g# T" #????????????????? | | ???????????????????# g""" + " #????????????????? | | ???????????????????# """ # #????????#???????? | | ???????????????????# # #??????#?????????? | | ???????????????????# """ ## ##????#?#?????????? | | ????????????????#??# """ ## #?????????????????? | | ???????????? ??????# """ ## #?????????????????? | | ???????????#???????# ## #?????????????????? | | ?????????????????########### #?????????????????? | | ?????????????????# # #?#######?????????? | | ?????????????????#= # #? ??????????? | | ?????????????????# # ^#? """??????????? | | ???????????????? # + # """"??????????? | | ?????????????????# """ """ # # """""?????????? | | ?????????????????# """ """ # + """""?????????? | | ???????????????? # """ """ # # """ #????????? | | ?????????????????# # # #????#???? | | ?????????????????########### #? #????????? | | ????????????????#????#?????# #? #????????? | | ???????????????????????????# ##########????????? | | ???????????????????????????# # #?????????? | | ??????????????????########## + #?????????? | | ??????????????????# # # #?????????? | | ??????????????????# """ # #########?????????? | +----------------------------------------------------+ Best States ------------- Heat Dissipation 28 Energy Generation 10 Energy Capacity 125 Matter Stores 300 Matter Capacity 300 Sight Range 16 Terrain Scan Range 16 Terrain Scan Density 10 Evasion (%) 50 Targeting Accuracy 5 Item Schematics ----------------- None Robot Schematics ------------------ None Fabricated ------------ Nothing Alien Tech Used ----------------- None Achievements -------------- None Challenges ------------ None Game ------ Seed LayeredMappingDatajack Manual? 0 Play Time 00:06:44 Cumulative 40.8 hours Start 2024.08.14 @ 18:39:44 End 2024.08.14 @ 18:45:06 Sessions 1 Manual Loads 0 Difficulty Rogue Special Mode None Game No. 69 Rogue 65 Adventurer 4 Explorer 0 Win Type - Total 0 Types 0/0/0/0/0/0/0/0/0 Lore% 11 Gallery% 34 Achievement% 26 Wizard Run 0 Options --------- Layout 1 ASCII 0 Keyboard 0 Movement Mouse Keybinds 0 Fullscreen 2 Font 24/Smallcaps Map View 50x35 Zoom Use 0% Tactical HUD 1 Map Filters NONE Filters NONE Steam 1 RUN: 7f1de2d5-2892-4ec5-8d7f-c05343f5509e